{"text_format":"1","workbook":"xlsx","n_sheets":17,"sheets":["Accueil","Résultats","BDLV","Liste de vérification","Audit Janv","Audit Fév","Audit Mars","Audit Avril","Audit Mai","Audit Juin","Audit Juilet","Audit Août","Audit Septembre","Audit Octobre","Audit Novembre","Audit Décembre","Tableau"],"not_rendered":{"charts":0,"images":11,"macros":1,"external_links":0,"defined_names":0,"comments":0,"pivot_tables":1},"unopened":[],"bounds":{"document_bytes":16777216,"sheet_cells":100000,"rows_first":2000,"rows_last":500,"rows_between":2000,"halvings":0,"cell_chars":16384,"cell_head_chars":4096},"cells_cut":0,"cells_raw":0,"read":"whole","date_system":"1900"}

{"sheet":"Accueil","index":0,"n_rows":0,"n_cols":0,"rows_kept":0,"cut":false,"hidden":false,"merged":[]}

{"sheet":"Résultats","index":1,"n_rows":15,"n_cols":5,"rows_kept":15,"cut":false,"hidden":false,"merged":[[1,3,7,5],[1,2,7,2],[8,2,8,5]]}
[]
[null,null,"Résultat 5S Audits"]
[]
[]
[]
[]
[]
[]
[null,null,"*Potentiel de 116 points"]
[]
[]
[null,null,"Nombre de Résultat","Étiquettes de colonnes"]
[null,null,"Étiquettes de lignes","(vide)","Total général"]
[null,null,"(vide)"]
[null,null,"Total général"]

{"sheet":"BDLV","index":2,"n_rows":3,"n_cols":6,"rows_kept":3,"cut":false,"hidden":false,"merged":[]}
[]
["ID","Date","Catégorie","Question","Résultat","Commentaires"]
[{"$f":"ROW(A3)-2","v":1}]

{"sheet":"Liste de vérification","index":3,"n_rows":41,"n_cols":8,"rows_kept":41,"cut":false,"hidden":false,"merged":[[22,0,27,0],[28,0,33,0],[34,0,39,0],[4,0,4,7],[8,0,9,0],[8,1,9,1],[8,2,8,6],[8,7,9,7],[10,0,15,0],[16,0,21,0],[5,0,5,7]]}
[]
[]
[]
[]
["Liste de vérification 5S"]
["Compléter chaque jour"]
["Date :  "]
[]
["Catégorie","Étapes","Évaluation",null,null,null,null,"Commentaires"]
[null,null,"L0","L1","L2","L3","L4"]
["\nTrier\n(Supprimer)","Distinguer entre ce qui est à garder ou a supprimer"]
[null,"Les items inutiles sont présent"]
[null,"Les items inutiles sont sur le mure, plancher, tableau d'affichage, etc."]
[null,"Les items sont présent dans les aller, escalier, coins, etc."]
[null,"Les inventaires, fournitures ou matériels sont présents"]
[null,"Il existe des risques pour la sécurité (eau, huile, produits chimiques, machines) sont présent"]
["\nOrganiser\n(L'ordre)","Chaque item à sa place / Chaque place a son item"]
[null,"Chaque item à sa place n'est pas évident à observer"]
[null,"Les items ne sont pas à leur places"]
[null,"Les allées, poste de travail, l'emplacement des équipements ne sont pas indiqués"]
[null,"Les items ne sont pas replacés après utilisation"]
[null,"La taille et la qualité des item ne sont pas évident à observer"]
["\nNettoyer\n(Propreté)","Des procédures de nettoyage existe, afin de garder les endroits propres et organisé"]
[null,"Le plancher, les mures ne sont pas débarassé de la poussière.huile, graisse , etc."]
[null,"Les équipements ne sont pas garder propre (saleté, huile, graisse, etc)"]
[null,"Le matériels n'est placé de façon à facilité le nettoyage"]
[null,"Les lignes, étiquettes, signaux, etc. ne sont pas nettoyé, ni intact"]
[null,"Il existe d'autres problèmes de nettoyade dans la maison"]
["\nStandardiser\n(Adésion)","Maintien et maintenir les trois (3) premières catégories"]
[null,"Les informations utiles ne sont pas visibles"]
[null,"L'ensemble des standards ne sont pas tous connu et visible"]
[null,"Il n'existe pas de liste de vérification pour le nettoyage et le travail d'entretien"]
[null,"Toutes les quantités et les limites ne sont pas facilement reconnaissable"]
[null,"Combien d'items peuvent être localisé en 30 secondes ?"]
["\nMaintenir\n(Autodiscipline)","L'équipe suit les règles"]
[null,"Combien d'employés n'ont pas eu l'entraînemet 5S ?"]
[null,"La semaine dernière, combien de fois par jour le 5S n'a pas été appliqué ?"]
[null,"Combien de fois les effets personnels des employés n'ont pas été soigneusement rangé ?"]
[null,"Combien de fois les outils ne sont pas disponibles ou à jour ?"]
[null,"Combien de fois , la semaine dernière que l'inspection 5S n'a pas été réalisé ?"]
[null,"Total :  ",{"$f":"SUM(C11:C40)","v":0},{"$f":"SUM(D11:D40)","v":0},0,0,0]

{"sheet":"Audit Janv","index":4,"n_rows":50,"n_cols":11,"rows_kept":50,"cut":false,"hidden":false,"merged":[[4,0,4,12],[33,0,39,0],[39,1,39,2],[41,0,47,0],[47,1,47,2],[40,0,40,7],[32,0,32,7],[21,9,21,12],[6,0,6,2],[7,0,7,2],[25,0,31,0],[31,1,31,2],[22,9,49,12],[24,0,24,7],[16,0,16,7],[8,0,8,7],[9,0,15,0],[15,1,15,2],[17,0,23,0],[23,1,23,2],[49,3,49,7],[49,0,49,2],[48,0,48,2]]}
[]
[]
[null,null,null,null,null,null,null,null,null,"Mois :  ","2023-01-01"]
[]
["AUDIT ET RÉSULTATS 5S"]
[]
["# de problèmes :  ",null,null,"(5+)","(3-4)","(2)","(1)","(0)"]
["Nombre d'observations :  ",null,null,0,1,2,3,4]
["Quant vous avez un doute, supprimez-le"]
["Trier",1,"Distinguer entre ce qui est à garder ou a supprimer",null,null,2]
[null,2,"Les items inutiles sont présent",null,null,2]
[null,3,"Les items inutiles sont sur le mure, plancher, tableau d'affichage, etc.",null,null,null,null,4]
[null,4,"Les items sont sont présent dans les aller, escalier, coins, etc.",null,null,null,null,4]
[null,5,"Les inventaires, fournitures ou matériels sont présents"]
[null,6,"Il existe des risques pour la sécurité (eau, huile, produits chimiques, machines) sont présent"]
[null,"Sous-total :  ",null,{"$f":"SUM(D10:D15)","v":0},{"$f":"SUM(E10:E15)","v":0},4,0,8]
["Une place pour chaque item et chaque item à sa place"]
["Organiser",1,"Chaque item à sa place / Chaque place a son item"]
[null,2,"Chaque item à sa place n'est pas évident à observer"]
[null,3,"Les items ne sont pas à leur places"]
[null,4,"Les allées, poste de travail, l'emplacement des équipements ne sont pas indiqués"]
[null,5,"Les items ne sont pas replacés après utilisation",null,null,null,null,null,null,"Commentaires et actions à prendre"]
[null,6,"La taille et la qualité des item ne sont pas évident à observer"]
[null,"Sous-total :  ",null,{"$f":"SUM(D18:D23)","v":0},{"$f":"SUM(E18:E23)","v":0},0,0,0]
["Nettoyer et inspecter ou inspecter en nettoyant"]
["Nettoyer",1,"Des procédures de nettoyage existe, afin de garder les endroits propres et organisé"]
[null,2,"Le plancher, les mures ne sont pas débarassé de la poussière.huile, graisse , etc."]
[null,3,"Les équipements ne sont pas garder propre (saleté, huile, graisse, etc)"]
[null,4,"Le matériels n'est placé de façon à facilité le nettoyage"]
[null,5,"Les lignes, étiquettes, signaux, etc. ne sont pas nettoyé, ni intact"]
[null,6,"Il existe d'autres problèmes de nettoyade dans la maison"]
[null,"Sous-total :  ",null,{"$f":"SUM(D26:D31)","v":0},{"$f":"SUM(E26:E31)","v":0},0,0,0]
["Déterminer les règles et assurez-vous quelles soient suivi"]
["Standardiser",1,"Maintien et maintenir les trois (3) premières catégories"]
[null,2,"Les informations utiles ne sont pas visibles"]
[null,3,"L'ensemble des standards ne sont pas tous connu et visible"]
[null,4,"Il n'existe pas de liste de vérification pour le nettoyage et le travail d'entretien"]
[null,5,"Toutes les quantités et les limites ne sont pas facilement reconnaissable"]
[null,6,"Combien d'items peuvent être localisé en 30 secondes ?"]
[null,"Sous-total :  ",null,{"$f":"SUM(D34:D39)","v":0},{"$f":"SUM(E34:E39)","v":0},0,0,0]
["Soutenir de façon permanente jusqu'à ce que cela devienne une habitude"]
["Maintenir",1,"L'équipe suit les règles"]
[null,2,"Combien d'employés n'ont pas eu l'entraînemet 5S ?"]
[null,3,"La semaine dernière, combien de fois paqr jour le 5S n'a pas été appliqué"]
[null,4,"Combien de fois les effets personnels des employés n'ont pas été soigneusement rangé"]
[null,5,"Combien de fois les outils ne sont pas disponibles ou à jour"]
[null,6,"Combien de fois , la semaine dernière que l'inspection 5S n'a pas été réalisé"]
[null,"Sous-total :  ",null,{"$f":"SUM(D42:D47)","v":0},{"$f":"SUM(E42:E47)","v":0},0,0,0]
["Total des sous-totaux :  ",null,null,{"$f":"SUM(D16,D24,D32,D40,D48)","v":0},{"$f":"SUM(E16,E24,E32,E40,E48)","v":0},4,0,8]
["Total 5S :  ",null,null,{"$f":"SUM(D49:H49)","v":12}]

{"sheet":"Audit Fév","index":5,"n_rows":50,"n_cols":11,"rows_kept":50,"cut":false,"hidden":false,"merged":[[21,9,21,12],[32,0,32,7],[33,0,39,0],[39,1,39,2],[40,0,40,7],[22,9,49,12],[48,0,48,2],[49,0,49,2],[49,3,49,7],[41,0,47,0],[47,1,47,2],[16,0,16,7],[17,0,23,0],[23,1,23,2],[24,0,24,7],[25,0,31,0],[31,1,31,2],[4,0,4,12],[6,0,6,2],[7,0,7,2],[8,0,8,7],[9,0,15,0],[15,1,15,2]]}
[]
[]
[null,null,null,null,null,null,null,null,null,"Mois :  ","2023-02-01"]
[]
["AUDIT ET RÉSULTATS 5S"]
[]
["# de problèmes :  ",null,null,"(5+)","(3-4)","(2)","(1)","(0)"]
["Nombre d'observations :  ",null,null,0,1,2,3,4]
["Quant vous avez un doute, supprimez-le"]
["Trier",1,"Distinguer entre ce qui est à garder ou a supprimer"]
[null,2,"Les items inutiles sont présent"]
[null,3,"Les items inutiles sont sur le mure, plancher, tableau d'affichage, etc."]
[null,4,"Les items sont sont présent dans les aller, escalier, coins, etc."]
[null,5,"Les inventaires, fournitures ou matériels sont présents"]
[null,6,"Il existe des risques pour la sécurité (eau, huile, produits chimiques, machines) sont présent"]
[null,"Sous-total :  ",null,{"$f":"SUM(D10:D15)","v":0},{"$f":"SUM(E10:E15)","v":0},0,0,0]
["Une place pour chaque item et chaque item à sa place"]
["Organiser",1,"Chaque item à sa place / Chaque place a son item"]
[null,2,"Chaque item à sa place n'est pas évident à observer"]
[null,3,"Les items ne sont pas à leur places"]
[null,4,"Les allées, poste de travail, l'emplacement des équipements ne sont pas indiqués"]
[null,5,"Les items ne sont pas replacés après utilisation",null,null,null,null,null,null,"Commentaires et actions à prendre"]
[null,6,"La taille et la qualité des item ne sont pas évident à observer"]
[null,"Sous-total :  ",null,{"$f":"SUM(D18:D23)","v":0},{"$f":"SUM(E18:E23)","v":0},0,0,0]
["Nettoyer et inspecter ou inspecter en nettoyant"]
["Nettoyer",1,"Des procédures de nettoyage existe, afin de garder les endroits propres et organisé"]
[null,2,"Le plancher, les mures ne sont pas débarassé de la poussière.huile, graisse , etc."]
[null,3,"Les équipements ne sont pas garder propre (saleté, huile, graisse, etc)"]
[null,4,"Le matériels n'est placé de façon à facilité le nettoyage"]
[null,5,"Les lignes, étiquettes, signaux, etc. ne sont pas nettoyé, ni intact"]
[null,6,"Il existe d'autres problèmes de nettoyade dans la maison"]
[null,"Sous-total :  ",null,{"$f":"SUM(D26:D31)","v":0},{"$f":"SUM(E26:E31)","v":0},0,0,0]
["Déterminer les règles et assurez-vous quelles soient suivi"]
["Standardiser",1,"Maintien et maintenir les trois (3) premières catégories"]
[null,2,"Les informations utiles ne sont pas visibles"]
[null,3,"L'ensemble des standards ne sont pas tous connu et visible"]
[null,4,"Il n'existe pas de liste de vérification pour le nettoyage et le travail d'entretien"]
[null,5,"Toutes les quantités et les limites ne sont pas facilement reconnaissable"]
[null,6,"Combien d'items peuvent être localisé en 30 secondes ?"]
[null,"Sous-total :  ",null,{"$f":"SUM(D34:D39)","v":0},{"$f":"SUM(E34:E39)","v":0},0,0,0]
["Soutenir de façon permanente jusqu'à ce que cela devienne une habitude"]
["Maintenir",1,"L'équipe suit les règles"]
[null,2,"Combien d'employés n'ont pas eu l'entraînemet 5S ?"]
[null,3,"La semaine dernière, combien de fois paqr jour le 5S n'a pas été appliqué"]
[null,4,"Combien de fois les effets personnels des employés n'ont pas été soigneusement rangé"]
[null,5,"Combien de fois les outils ne sont pas disponibles ou à jour"]
[null,6,"Combien de fois , la semaine dernière que l'inspection 5S n'a pas été réalisé"]
[null,"Sous-total :  ",null,{"$f":"SUM(D42:D47)","v":0},{"$f":"SUM(E42:E47)","v":0},0,0,0]
["Total des sous-totaux :  ",null,null,{"$f":"SUM(D16,D24,D32,D40,D48)","v":0},{"$f":"SUM(E16,E24,E32,E40,E48)","v":0},0,0,0]
["Total 5S :  ",null,null,{"$f":"SUM(D49:H49)","v":0}]

{"sheet":"Audit Mars","index":6,"n_rows":50,"n_cols":11,"rows_kept":50,"cut":false,"hidden":false,"merged":[[21,9,21,12],[40,0,40,7],[16,0,16,7],[17,0,23,0],[23,1,23,2],[24,0,24,7],[25,0,31,0],[31,1,31,2],[22,9,49,12],[4,0,4,12],[6,0,6,2],[7,0,7,2],[8,0,8,7],[9,0,15,0],[15,1,15,2],[49,0,49,2],[49,3,49,7],[47,1,47,2],[32,0,32,7],[33,0,39,0],[39,1,39,2],[48,0,48,2],[41,0,47,0]]}
[]
[]
[null,null,null,null,null,null,null,null,null,"Mois :  ","2023-03-01"]
[]
["AUDIT ET RÉSULTATS 5S"]
[]
["# de problèmes :  ",null,null,"(5+)","(3-4)","(2)","(1)","(0)"]
["Nombre d'observations :  ",null,null,0,1,2,3,4]
["Quant vous avez un doute, supprimez-le"]
["Trier",1,"Distinguer entre ce qui est à garder ou a supprimer"]
[null,2,"Les items inutiles sont présent"]
[null,3,"Les items inutiles sont sur le mure, plancher, tableau d'affichage, etc."]
[null,4,"Les items sont sont présent dans les aller, escalier, coins, etc."]
[null,5,"Les inventaires, fournitures ou matériels sont présents"]
[null,6,"Il existe des risques pour la sécurité (eau, huile, produits chimiques, machines) sont présent"]
[null,"Sous-total :  ",null,{"$f":"SUM(D10:D15)","v":0},{"$f":"SUM(E10:E15)","v":0},0,0,0]
["Une place pour chaque item et chaque item à sa place"]
["Organiser",1,"Chaque item à sa place / Chaque place a son item"]
[null,2,"Chaque item à sa place n'est pas évident à observer"]
[null,3,"Les items ne sont pas à leur places"]
[null,4,"Les allées, poste de travail, l'emplacement des équipements ne sont pas indiqués"]
[null,5,"Les items ne sont pas replacés après utilisation",null,null,null,null,null,null,"Commentaires et actions à prendre"]
[null,6,"La taille et la qualité des item ne sont pas évident à observer"]
[null,"Sous-total :  ",null,{"$f":"SUM(D18:D23)","v":0},{"$f":"SUM(E18:E23)","v":0},0,0,0]
["Nettoyer et inspecter ou inspecter en nettoyant"]
["Nettoyer",1,"Des procédures de nettoyage existe, afin de garder les endroits propres et organisé"]
[null,2,"Le plancher, les mures ne sont pas débarassé de la poussière.huile, graisse , etc."]
[null,3,"Les équipements ne sont pas garder propre (saleté, huile, graisse, etc)"]
[null,4,"Le matériels n'est placé de façon à facilité le nettoyage"]
[null,5,"Les lignes, étiquettes, signaux, etc. ne sont pas nettoyé, ni intact"]
[null,6,"Il existe d'autres problèmes de nettoyade dans la maison"]
[null,"Sous-total :  ",null,{"$f":"SUM(D26:D31)","v":0},{"$f":"SUM(E26:E31)","v":0},0,0,0]
["Déterminer les règles et assurez-vous quelles soient suivi"]
["Standardiser",1,"Maintien et maintenir les trois (3) premières catégories"]
[null,2,"Les informations utiles ne sont pas visibles"]
[null,3,"L'ensemble des standards ne sont pas tous connu et visible"]
[null,4,"Il n'existe pas de liste de vérification pour le nettoyage et le travail d'entretien"]
[null,5,"Toutes les quantités et les limites ne sont pas facilement reconnaissable"]
[null,6,"Combien d'items peuvent être localisé en 30 secondes ?"]
[null,"Sous-total :  ",null,{"$f":"SUM(D34:D39)","v":0},{"$f":"SUM(E34:E39)","v":0},0,0,0]
["Soutenir de façon permanente jusqu'à ce que cela devienne une habitude"]
["Maintenir",1,"L'équipe suit les règles"]
[null,2,"Combien d'employés n'ont pas eu l'entraînemet 5S ?"]
[null,3,"La semaine dernière, combien de fois paqr jour le 5S n'a pas été appliqué"]
[null,4,"Combien de fois les effets personnels des employés n'ont pas été soigneusement rangé"]
[null,5,"Combien de fois les outils ne sont pas disponibles ou à jour"]
[null,6,"Combien de fois , la semaine dernière que l'inspection 5S n'a pas été réalisé"]
[null,"Sous-total :  ",null,{"$f":"SUM(D42:D47)","v":0},{"$f":"SUM(E42:E47)","v":0},0,0,0]
["Total des sous-totaux :  ",null,null,{"$f":"SUM(D16,D24,D32,D40,D48)","v":0},{"$f":"SUM(E16,E24,E32,E40,E48)","v":0},0,0,0]
["Total 5S :  ",null,null,{"$f":"SUM(D49:H49)","v":0}]

{"sheet":"Audit Avril","index":7,"n_rows":50,"n_cols":11,"rows_kept":50,"cut":false,"hidden":false,"merged":[[16,0,16,7],[17,0,23,0],[21,9,21,12],[22,9,49,12],[23,1,23,2],[24,0,24,7],[25,0,31,0],[31,1,31,2],[32,0,32,7],[4,0,4,12],[6,0,6,2],[7,0,7,2],[8,0,8,7],[9,0,15,0],[15,1,15,2],[48,0,48,2],[49,0,49,2],[33,0,39,0],[39,1,39,2],[40,0,40,7],[41,0,47,0],[47,1,47,2],[49,3,49,7]]}
[]
[]
[null,null,null,null,null,null,null,null,null,"Mois :  ","2023-04-01"]
[]
["AUDIT ET RÉSULTATS 5S"]
[]
["# de problèmes :  ",null,null,"(5+)","(3-4)","(2)","(1)","(0)"]
["Nombre d'observations :  ",null,null,0,1,2,3,4]
["Quant vous avez un doute, supprimez-le"]
["Trier",1,"Distinguer entre ce qui est à garder ou a supprimer"]
[null,2,"Les items inutiles sont présent"]
[null,3,"Les items inutiles sont sur le mure, plancher, tableau d'affichage, etc."]
[null,4,"Les items sont sont présent dans les aller, escalier, coins, etc."]
[null,5,"Les inventaires, fournitures ou matériels sont présents"]
[null,6,"Il existe des risques pour la sécurité (eau, huile, produits chimiques, machines) sont présent"]
[null,"Sous-total :  ",null,{"$f":"SUM(D10:D15)","v":0},{"$f":"SUM(E10:E15)","v":0},0,0,0]
["Une place pour chaque item et chaque item à sa place"]
["Organiser",1,"Chaque item à sa place / Chaque place a son item"]
[null,2,"Chaque item à sa place n'est pas évident à observer"]
[null,3,"Les items ne sont pas à leur places"]
[null,4,"Les allées, poste de travail, l'emplacement des équipements ne sont pas indiqués"]
[null,5,"Les items ne sont pas replacés après utilisation",null,null,null,null,null,null,"Commentaires et actions à prendre"]
[null,6,"La taille et la qualité des item ne sont pas évident à observer"]
[null,"Sous-total :  ",null,{"$f":"SUM(D18:D23)","v":0},{"$f":"SUM(E18:E23)","v":0},0,0,0]
["Nettoyer et inspecter ou inspecter en nettoyant"]
["Nettoyer",1,"Des procédures de nettoyage existe, afin de garder les endroits propres et organisé"]
[null,2,"Le plancher, les mures ne sont pas débarassé de la poussière.huile, graisse , etc."]
[null,3,"Les équipements ne sont pas garder propre (saleté, huile, graisse, etc)"]
[null,4,"Le matériels n'est placé de façon à facilité le nettoyage"]
[null,5,"Les lignes, étiquettes, signaux, etc. ne sont pas nettoyé, ni intact"]
[null,6,"Il existe d'autres problèmes de nettoyade dans la maison"]
[null,"Sous-total :  ",null,{"$f":"SUM(D26:D31)","v":0},{"$f":"SUM(E26:E31)","v":0},0,0,0]
["Déterminer les règles et assurez-vous quelles soient suivi"]
["Standardiser",1,"Maintien et maintenir les trois (3) premières catégories"]
[null,2,"Les informations utiles ne sont pas visibles"]
[null,3,"L'ensemble des standards ne sont pas tous connu et visible"]
[null,4,"Il n'existe pas de liste de vérification pour le nettoyage et le travail d'entretien"]
[null,5,"Toutes les quantités et les limites ne sont pas facilement reconnaissable"]
[null,6,"Combien d'items peuvent être localisé en 30 secondes ?"]
[null,"Sous-total :  ",null,{"$f":"SUM(D34:D39)","v":0},{"$f":"SUM(E34:E39)","v":0},0,0,0]
["Soutenir de façon permanente jusqu'à ce que cela devienne une habitude"]
["Maintenir",1,"L'équipe suit les règles"]
[null,2,"Combien d'employés n'ont pas eu l'entraînemet 5S ?"]
[null,3,"La semaine dernière, combien de fois paqr jour le 5S n'a pas été appliqué"]
[null,4,"Combien de fois les effets personnels des employés n'ont pas été soigneusement rangé"]
[null,5,"Combien de fois les outils ne sont pas disponibles ou à jour"]
[null,6,"Combien de fois , la semaine dernière que l'inspection 5S n'a pas été réalisé"]
[null,"Sous-total :  ",null,{"$f":"SUM(D42:D47)","v":0},{"$f":"SUM(E42:E47)","v":0},0,0,0]
["Total des sous-totaux :  ",null,null,{"$f":"SUM(D16,D24,D32,D40,D48)","v":0},{"$f":"SUM(E16,E24,E32,E40,E48)","v":0},0,0,0]
["Total 5S :  ",null,null,{"$f":"SUM(D49:H49)","v":0}]

{"sheet":"Audit Mai","index":8,"n_rows":50,"n_cols":11,"rows_kept":50,"cut":false,"hidden":false,"merged":[[16,0,16,7],[17,0,23,0],[21,9,21,12],[22,9,49,12],[23,1,23,2],[24,0,24,7],[25,0,31,0],[31,1,31,2],[32,0,32,7],[4,0,4,12],[6,0,6,2],[7,0,7,2],[8,0,8,7],[9,0,15,0],[15,1,15,2],[48,0,48,2],[49,0,49,2],[33,0,39,0],[39,1,39,2],[40,0,40,7],[41,0,47,0],[47,1,47,2],[49,3,49,7]]}
[]
[]
[null,null,null,null,null,null,null,null,null,"Mois :  ","2023-05-01"]
[]
["AUDIT ET RÉSULTATS 5S"]
[]
["# de problèmes :  ",null,null,"(5+)","(3-4)","(2)","(1)","(0)"]
["Nombre d'observations :  ",null,null,0,1,2,3,4]
["Quant vous avez un doute, supprimez-le"]
["Trier",1,"Distinguer entre ce qui est à garder ou a supprimer"]
[null,2,"Les items inutiles sont présent"]
[null,3,"Les items inutiles sont sur le mure, plancher, tableau d'affichage, etc."]
[null,4,"Les items sont sont présent dans les aller, escalier, coins, etc."]
[null,5,"Les inventaires, fournitures ou matériels sont présents"]
[null,6,"Il existe des risques pour la sécurité (eau, huile, produits chimiques, machines) sont présent"]
[null,"Sous-total :  ",null,{"$f":"SUM(D10:D15)","v":0},{"$f":"SUM(E10:E15)","v":0},0,0,0]
["Une place pour chaque item et chaque item à sa place"]
["Organiser",1,"Chaque item à sa place / Chaque place a son item"]
[null,2,"Chaque item à sa place n'est pas évident à observer"]
[null,3,"Les items ne sont pas à leur places"]
[null,4,"Les allées, poste de travail, l'emplacement des équipements ne sont pas indiqués"]
[null,5,"Les items ne sont pas replacés après utilisation",null,null,null,null,null,null,"Commentaires et actions à prendre"]
[null,6,"La taille et la qualité des item ne sont pas évident à observer"]
[null,"Sous-total :  ",null,{"$f":"SUM(D18:D23)","v":0},{"$f":"SUM(E18:E23)","v":0},0,0,0]
["Nettoyer et inspecter ou inspecter en nettoyant"]
["Nettoyer",1,"Des procédures de nettoyage existe, afin de garder les endroits propres et organisé"]
[null,2,"Le plancher, les mures ne sont pas débarassé de la poussière.huile, graisse , etc."]
[null,3,"Les équipements ne sont pas garder propre (saleté, huile, graisse, etc)"]
[null,4,"Le matériels n'est placé de façon à facilité le nettoyage"]
[null,5,"Les lignes, étiquettes, signaux, etc. ne sont pas nettoyé, ni intact"]
[null,6,"Il existe d'autres problèmes de nettoyade dans la maison"]
[null,"Sous-total :  ",null,{"$f":"SUM(D26:D31)","v":0},{"$f":"SUM(E26:E31)","v":0},0,0,0]
["Déterminer les règles et assurez-vous quelles soient suivi"]
["Standardiser",1,"Maintien et maintenir les trois (3) premières catégories"]
[null,2,"Les informations utiles ne sont pas visibles"]
[null,3,"L'ensemble des standards ne sont pas tous connu et visible"]
[null,4,"Il n'existe pas de liste de vérification pour le nettoyage et le travail d'entretien"]
[null,5,"Toutes les quantités et les limites ne sont pas facilement reconnaissable"]
[null,6,"Combien d'items peuvent être localisé en 30 secondes ?"]
[null,"Sous-total :  ",null,{"$f":"SUM(D34:D39)","v":0},{"$f":"SUM(E34:E39)","v":0},0,0,0]
["Soutenir de façon permanente jusqu'à ce que cela devienne une habitude"]
["Maintenir",1,"L'équipe suit les règles"]
[null,2,"Combien d'employés n'ont pas eu l'entraînemet 5S ?"]
[null,3,"La semaine dernière, combien de fois paqr jour le 5S n'a pas été appliqué"]
[null,4,"Combien de fois les effets personnels des employés n'ont pas été soigneusement rangé"]
[null,5,"Combien de fois les outils ne sont pas disponibles ou à jour"]
[null,6,"Combien de fois , la semaine dernière que l'inspection 5S n'a pas été réalisé"]
[null,"Sous-total :  ",null,{"$f":"SUM(D42:D47)","v":0},{"$f":"SUM(E42:E47)","v":0},0,0,0]
["Total des sous-totaux :  ",null,null,{"$f":"SUM(D16,D24,D32,D40,D48)","v":0},{"$f":"SUM(E16,E24,E32,E40,E48)","v":0},0,0,0]
["Total 5S :  ",null,null,{"$f":"SUM(D49:H49)","v":0}]

{"sheet":"Audit Juin","index":9,"n_rows":50,"n_cols":11,"rows_kept":50,"cut":false,"hidden":false,"merged":[[16,0,16,7],[17,0,23,0],[21,9,21,12],[22,9,49,12],[23,1,23,2],[24,0,24,7],[25,0,31,0],[31,1,31,2],[32,0,32,7],[4,0,4,12],[6,0,6,2],[7,0,7,2],[8,0,8,7],[9,0,15,0],[15,1,15,2],[48,0,48,2],[49,0,49,2],[33,0,39,0],[39,1,39,2],[40,0,40,7],[41,0,47,0],[47,1,47,2],[49,3,49,7]]}
[]
[]
[null,null,null,null,null,null,null,null,null,"Mois :  ","2023-06-01"]
[]
["AUDIT ET RÉSULTATS 5S"]
[]
["# de problèmes :  ",null,null,"(5+)","(3-4)","(2)","(1)","(0)"]
["Nombre d'observations :  ",null,null,0,1,2,3,4]
["Quant vous avez un doute, supprimez-le"]
["Trier",1,"Distinguer entre ce qui est à garder ou a supprimer"]
[null,2,"Les items inutiles sont présent"]
[null,3,"Les items inutiles sont sur le mure, plancher, tableau d'affichage, etc."]
[null,4,"Les items sont sont présent dans les aller, escalier, coins, etc."]
[null,5,"Les inventaires, fournitures ou matériels sont présents"]
[null,6,"Il existe des risques pour la sécurité (eau, huile, produits chimiques, machines) sont présent"]
[null,"Sous-total :  ",null,{"$f":"SUM(D10:D15)","v":0},{"$f":"SUM(E10:E15)","v":0},0,0,0]
["Une place pour chaque item et chaque item à sa place"]
["Organiser",1,"Chaque item à sa place / Chaque place a son item"]
[null,2,"Chaque item à sa place n'est pas évident à observer"]
[null,3,"Les items ne sont pas à leur places"]
[null,4,"Les allées, poste de travail, l'emplacement des équipements ne sont pas indiqués"]
[null,5,"Les items ne sont pas replacés après utilisation",null,null,null,null,null,null,"Commentaires et actions à prendre"]
[null,6,"La taille et la qualité des item ne sont pas évident à observer"]
[null,"Sous-total :  ",null,{"$f":"SUM(D18:D23)","v":0},{"$f":"SUM(E18:E23)","v":0},0,0,0]
["Nettoyer et inspecter ou inspecter en nettoyant"]
["Nettoyer",1,"Des procédures de nettoyage existe, afin de garder les endroits propres et organisé"]
[null,2,"Le plancher, les mures ne sont pas débarassé de la poussière.huile, graisse , etc."]
[null,3,"Les équipements ne sont pas garder propre (saleté, huile, graisse, etc)"]
[null,4,"Le matériels n'est placé de façon à facilité le nettoyage"]
[null,5,"Les lignes, étiquettes, signaux, etc. ne sont pas nettoyé, ni intact"]
[null,6,"Il existe d'autres problèmes de nettoyade dans la maison"]
[null,"Sous-total :  ",null,{"$f":"SUM(D26:D31)","v":0},{"$f":"SUM(E26:E31)","v":0},0,0,0]
["Déterminer les règles et assurez-vous quelles soient suivi"]
["Standardiser",1,"Maintien et maintenir les trois (3) premières catégories"]
[null,2,"Les informations utiles ne sont pas visibles"]
[null,3,"L'ensemble des standards ne sont pas tous connu et visible"]
[null,4,"Il n'existe pas de liste de vérification pour le nettoyage et le travail d'entretien"]
[null,5,"Toutes les quantités et les limites ne sont pas facilement reconnaissable"]
[null,6,"Combien d'items peuvent être localisé en 30 secondes ?"]
[null,"Sous-total :  ",null,{"$f":"SUM(D34:D39)","v":0},{"$f":"SUM(E34:E39)","v":0},0,0,0]
["Soutenir de façon permanente jusqu'à ce que cela devienne une habitude"]
["Maintenir",1,"L'équipe suit les règles"]
[null,2,"Combien d'employés n'ont pas eu l'entraînemet 5S ?"]
[null,3,"La semaine dernière, combien de fois paqr jour le 5S n'a pas été appliqué"]
[null,4,"Combien de fois les effets personnels des employés n'ont pas été soigneusement rangé"]
[null,5,"Combien de fois les outils ne sont pas disponibles ou à jour"]
[null,6,"Combien de fois , la semaine dernière que l'inspection 5S n'a pas été réalisé"]
[null,"Sous-total :  ",null,{"$f":"SUM(D42:D47)","v":0},{"$f":"SUM(E42:E47)","v":0},0,0,0]
["Total des sous-totaux :  ",null,null,{"$f":"SUM(D16,D24,D32,D40,D48)","v":0},{"$f":"SUM(E16,E24,E32,E40,E48)","v":0},0,0,0]
["Total 5S :  ",null,null,{"$f":"SUM(D49:H49)","v":0}]

{"sheet":"Audit Juilet","index":10,"n_rows":50,"n_cols":11,"rows_kept":50,"cut":false,"hidden":false,"merged":[[16,0,16,7],[17,0,23,0],[21,9,21,12],[22,9,49,12],[23,1,23,2],[24,0,24,7],[25,0,31,0],[31,1,31,2],[32,0,32,7],[4,0,4,12],[6,0,6,2],[7,0,7,2],[8,0,8,7],[9,0,15,0],[15,1,15,2],[48,0,48,2],[49,0,49,2],[33,0,39,0],[39,1,39,2],[40,0,40,7],[41,0,47,0],[47,1,47,2],[49,3,49,7]]}
[]
[]
[null,null,null,null,null,null,null,null,null,"Mois :  ","2023-07-01"]
[]
["AUDIT ET RÉSULTATS 5S"]
[]
["# de problèmes :  ",null,null,"(5+)","(3-4)","(2)","(1)","(0)"]
["Nombre d'observations :  ",null,null,0,1,2,3,4]
["Quant vous avez un doute, supprimez-le"]
["Trier",1,"Distinguer entre ce qui est à garder ou a supprimer"]
[null,2,"Les items inutiles sont présent"]
[null,3,"Les items inutiles sont sur le mure, plancher, tableau d'affichage, etc."]
[null,4,"Les items sont sont présent dans les aller, escalier, coins, etc."]
[null,5,"Les inventaires, fournitures ou matériels sont présents"]
[null,6,"Il existe des risques pour la sécurité (eau, huile, produits chimiques, machines) sont présent"]
[null,"Sous-total :  ",null,{"$f":"SUM(D10:D15)","v":0},{"$f":"SUM(E10:E15)","v":0},0,0,0]
["Une place pour chaque item et chaque item à sa place"]
["Organiser",1,"Chaque item à sa place / Chaque place a son item"]
[null,2,"Chaque item à sa place n'est pas évident à observer"]
[null,3,"Les items ne sont pas à leur places"]
[null,4,"Les allées, poste de travail, l'emplacement des équipements ne sont pas indiqués"]
[null,5,"Les items ne sont pas replacés après utilisation",null,null,null,null,null,null,"Commentaires et actions à prendre"]
[null,6,"La taille et la qualité des item ne sont pas évident à observer"]
[null,"Sous-total :  ",null,{"$f":"SUM(D18:D23)","v":0},{"$f":"SUM(E18:E23)","v":0},0,0,0]
["Nettoyer et inspecter ou inspecter en nettoyant"]
["Nettoyer",1,"Des procédures de nettoyage existe, afin de garder les endroits propres et organisé"]
[null,2,"Le plancher, les mures ne sont pas débarassé de la poussière.huile, graisse , etc."]
[null,3,"Les équipements ne sont pas garder propre (saleté, huile, graisse, etc)"]
[null,4,"Le matériels n'est placé de façon à facilité le nettoyage"]
[null,5,"Les lignes, étiquettes, signaux, etc. ne sont pas nettoyé, ni intact"]
[null,6,"Il existe d'autres problèmes de nettoyade dans la maison"]
[null,"Sous-total :  ",null,{"$f":"SUM(D26:D31)","v":0},{"$f":"SUM(E26:E31)","v":0},0,0,0]
["Déterminer les règles et assurez-vous quelles soient suivi"]
["Standardiser",1,"Maintien et maintenir les trois (3) premières catégories"]
[null,2,"Les informations utiles ne sont pas visibles"]
[null,3,"L'ensemble des standards ne sont pas tous connu et visible"]
[null,4,"Il n'existe pas de liste de vérification pour le nettoyage et le travail d'entretien"]
[null,5,"Toutes les quantités et les limites ne sont pas facilement reconnaissable"]
[null,6,"Combien d'items peuvent être localisé en 30 secondes ?"]
[null,"Sous-total :  ",null,{"$f":"SUM(D34:D39)","v":0},{"$f":"SUM(E34:E39)","v":0},0,0,0]
["Soutenir de façon permanente jusqu'à ce que cela devienne une habitude"]
["Maintenir",1,"L'équipe suit les règles"]
[null,2,"Combien d'employés n'ont pas eu l'entraînemet 5S ?"]
[null,3,"La semaine dernière, combien de fois paqr jour le 5S n'a pas été appliqué"]
[null,4,"Combien de fois les effets personnels des employés n'ont pas été soigneusement rangé"]
[null,5,"Combien de fois les outils ne sont pas disponibles ou à jour"]
[null,6,"Combien de fois , la semaine dernière que l'inspection 5S n'a pas été réalisé"]
[null,"Sous-total :  ",null,{"$f":"SUM(D42:D47)","v":0},{"$f":"SUM(E42:E47)","v":0},0,0,0]
["Total des sous-totaux :  ",null,null,{"$f":"SUM(D16,D24,D32,D40,D48)","v":0},{"$f":"SUM(E16,E24,E32,E40,E48)","v":0},0,0,0]
["Total 5S :  ",null,null,{"$f":"SUM(D49:H49)","v":0}]

{"sheet":"Audit Août","index":11,"n_rows":50,"n_cols":11,"rows_kept":50,"cut":false,"hidden":false,"merged":[[16,0,16,7],[17,0,23,0],[21,9,21,12],[22,9,49,12],[23,1,23,2],[24,0,24,7],[25,0,31,0],[31,1,31,2],[32,0,32,7],[4,0,4,12],[6,0,6,2],[7,0,7,2],[8,0,8,7],[9,0,15,0],[15,1,15,2],[48,0,48,2],[49,0,49,2],[33,0,39,0],[39,1,39,2],[40,0,40,7],[41,0,47,0],[47,1,47,2],[49,3,49,7]]}
[]
[]
[null,null,null,null,null,null,null,null,null,"Mois :  ","2023-08-01"]
[]
["AUDIT ET RÉSULTATS 5S"]
[]
["# de problèmes :  ",null,null,"(5+)","(3-4)","(2)","(1)","(0)"]
["Nombre d'observations :  ",null,null,0,1,2,3,4]
["Quant vous avez un doute, supprimez-le"]
["Trier",1,"Distinguer entre ce qui est à garder ou a supprimer"]
[null,2,"Les items inutiles sont présent"]
[null,3,"Les items inutiles sont sur le mure, plancher, tableau d'affichage, etc."]
[null,4,"Les items sont sont présent dans les aller, escalier, coins, etc."]
[null,5,"Les inventaires, fournitures ou matériels sont présents"]
[null,6,"Il existe des risques pour la sécurité (eau, huile, produits chimiques, machines) sont présent"]
[null,"Sous-total :  ",null,{"$f":"SUM(D10:D15)","v":0},{"$f":"SUM(E10:E15)","v":0},0,0,0]
["Une place pour chaque item et chaque item à sa place"]
["Organiser",1,"Chaque item à sa place / Chaque place a son item"]
[null,2,"Chaque item à sa place n'est pas évident à observer"]
[null,3,"Les items ne sont pas à leur places"]
[null,4,"Les allées, poste de travail, l'emplacement des équipements ne sont pas indiqués"]
[null,5,"Les items ne sont pas replacés après utilisation",null,null,null,null,null,null,"Commentaires et actions à prendre"]
[null,6,"La taille et la qualité des item ne sont pas évident à observer"]
[null,"Sous-total :  ",null,{"$f":"SUM(D18:D23)","v":0},{"$f":"SUM(E18:E23)","v":0},0,0,0]
["Nettoyer et inspecter ou inspecter en nettoyant"]
["Nettoyer",1,"Des procédures de nettoyage existe, afin de garder les endroits propres et organisé"]
[null,2,"Le plancher, les mures ne sont pas débarassé de la poussière.huile, graisse , etc."]
[null,3,"Les équipements ne sont pas garder propre (saleté, huile, graisse, etc)"]
[null,4,"Le matériels n'est placé de façon à facilité le nettoyage"]
[null,5,"Les lignes, étiquettes, signaux, etc. ne sont pas nettoyé, ni intact"]
[null,6,"Il existe d'autres problèmes de nettoyade dans la maison"]
[null,"Sous-total :  ",null,{"$f":"SUM(D26:D31)","v":0},{"$f":"SUM(E26:E31)","v":0},0,0,0]
["Déterminer les règles et assurez-vous quelles soient suivi"]
["Standardiser",1,"Maintien et maintenir les trois (3) premières catégories"]
[null,2,"Les informations utiles ne sont pas visibles"]
[null,3,"L'ensemble des standards ne sont pas tous connu et visible"]
[null,4,"Il n'existe pas de liste de vérification pour le nettoyage et le travail d'entretien"]
[null,5,"Toutes les quantités et les limites ne sont pas facilement reconnaissable"]
[null,6,"Combien d'items peuvent être localisé en 30 secondes ?"]
[null,"Sous-total :  ",null,{"$f":"SUM(D34:D39)","v":0},{"$f":"SUM(E34:E39)","v":0},0,0,0]
["Soutenir de façon permanente jusqu'à ce que cela devienne une habitude"]
["Maintenir",1,"L'équipe suit les règles"]
[null,2,"Combien d'employés n'ont pas eu l'entraînemet 5S ?"]
[null,3,"La semaine dernière, combien de fois paqr jour le 5S n'a pas été appliqué"]
[null,4,"Combien de fois les effets personnels des employés n'ont pas été soigneusement rangé"]
[null,5,"Combien de fois les outils ne sont pas disponibles ou à jour"]
[null,6,"Combien de fois , la semaine dernière que l'inspection 5S n'a pas été réalisé"]
[null,"Sous-total :  ",null,{"$f":"SUM(D42:D47)","v":0},{"$f":"SUM(E42:E47)","v":0},0,0,0]
["Total des sous-totaux :  ",null,null,{"$f":"SUM(D16,D24,D32,D40,D48)","v":0},{"$f":"SUM(E16,E24,E32,E40,E48)","v":0},0,0,0]
["Total 5S :  ",null,null,{"$f":"SUM(D49:H49)","v":0}]

{"sheet":"Audit Septembre","index":12,"n_rows":50,"n_cols":11,"rows_kept":50,"cut":false,"hidden":false,"merged":[[16,0,16,7],[17,0,23,0],[21,9,21,12],[22,9,49,12],[23,1,23,2],[24,0,24,7],[25,0,31,0],[31,1,31,2],[32,0,32,7],[4,0,4,12],[6,0,6,2],[7,0,7,2],[8,0,8,7],[9,0,15,0],[15,1,15,2],[48,0,48,2],[49,0,49,2],[33,0,39,0],[39,1,39,2],[40,0,40,7],[41,0,47,0],[47,1,47,2],[49,3,49,7]]}
[]
[]
[null,null,null,null,null,null,null,null,null,"Mois :  ","2023-09-01"]
[]
["AUDIT ET RÉSULTATS 5S"]
[]
["# de problèmes :  ",null,null,"(5+)","(3-4)","(2)","(1)","(0)"]
["Nombre d'observations :  ",null,null,0,1,2,3,4]
["Quant vous avez un doute, supprimez-le"]
["Trier",1,"Distinguer entre ce qui est à garder ou a supprimer"]
[null,2,"Les items inutiles sont présent"]
[null,3,"Les items inutiles sont sur le mure, plancher, tableau d'affichage, etc."]
[null,4,"Les items sont sont présent dans les aller, escalier, coins, etc."]
[null,5,"Les inventaires, fournitures ou matériels sont présents"]
[null,6,"Il existe des risques pour la sécurité (eau, huile, produits chimiques, machines) sont présent"]
[null,"Sous-total :  ",null,{"$f":"SUM(D10:D15)","v":0},{"$f":"SUM(E10:E15)","v":0},0,0,0]
["Une place pour chaque item et chaque item à sa place"]
["Organiser",1,"Chaque item à sa place / Chaque place a son item"]
[null,2,"Chaque item à sa place n'est pas évident à observer"]
[null,3,"Les items ne sont pas à leur places"]
[null,4,"Les allées, poste de travail, l'emplacement des équipements ne sont pas indiqués"]
[null,5,"Les items ne sont pas replacés après utilisation",null,null,null,null,null,null,"Commentaires et actions à prendre"]
[null,6,"La taille et la qualité des item ne sont pas évident à observer"]
[null,"Sous-total :  ",null,{"$f":"SUM(D18:D23)","v":0},{"$f":"SUM(E18:E23)","v":0},0,0,0]
["Nettoyer et inspecter ou inspecter en nettoyant"]
["Nettoyer",1,"Des procédures de nettoyage existe, afin de garder les endroits propres et organisé"]
[null,2,"Le plancher, les mures ne sont pas débarassé de la poussière.huile, graisse , etc."]
[null,3,"Les équipements ne sont pas garder propre (saleté, huile, graisse, etc)"]
[null,4,"Le matériels n'est placé de façon à facilité le nettoyage"]
[null,5,"Les lignes, étiquettes, signaux, etc. ne sont pas nettoyé, ni intact"]
[null,6,"Il existe d'autres problèmes de nettoyade dans la maison"]
[null,"Sous-total :  ",null,{"$f":"SUM(D26:D31)","v":0},{"$f":"SUM(E26:E31)","v":0},0,0,0]
["Déterminer les règles et assurez-vous quelles soient suivi"]
["Standardiser",1,"Maintien et maintenir les trois (3) premières catégories"]
[null,2,"Les informations utiles ne sont pas visibles"]
[null,3,"L'ensemble des standards ne sont pas tous connu et visible"]
[null,4,"Il n'existe pas de liste de vérification pour le nettoyage et le travail d'entretien"]
[null,5,"Toutes les quantités et les limites ne sont pas facilement reconnaissable"]
[null,6,"Combien d'items peuvent être localisé en 30 secondes ?"]
[null,"Sous-total :  ",null,{"$f":"SUM(D34:D39)","v":0},{"$f":"SUM(E34:E39)","v":0},0,0,0]
["Soutenir de façon permanente jusqu'à ce que cela devienne une habitude"]
["Maintenir",1,"L'équipe suit les règles"]
[null,2,"Combien d'employés n'ont pas eu l'entraînemet 5S ?"]
[null,3,"La semaine dernière, combien de fois paqr jour le 5S n'a pas été appliqué"]
[null,4,"Combien de fois les effets personnels des employés n'ont pas été soigneusement rangé"]
[null,5,"Combien de fois les outils ne sont pas disponibles ou à jour"]
[null,6,"Combien de fois , la semaine dernière que l'inspection 5S n'a pas été réalisé"]
[null,"Sous-total :  ",null,{"$f":"SUM(D42:D47)","v":0},{"$f":"SUM(E42:E47)","v":0},0,0,0]
["Total des sous-totaux :  ",null,null,{"$f":"SUM(D16,D24,D32,D40,D48)","v":0},{"$f":"SUM(E16,E24,E32,E40,E48)","v":0},0,0,0]
["Total 5S :  ",null,null,{"$f":"SUM(D49:H49)","v":0}]

{"sheet":"Audit Octobre","index":13,"n_rows":50,"n_cols":11,"rows_kept":50,"cut":false,"hidden":false,"merged":[[16,0,16,7],[17,0,23,0],[21,9,21,12],[22,9,49,12],[23,1,23,2],[24,0,24,7],[25,0,31,0],[31,1,31,2],[32,0,32,7],[4,0,4,12],[6,0,6,2],[7,0,7,2],[8,0,8,7],[9,0,15,0],[15,1,15,2],[48,0,48,2],[49,0,49,2],[33,0,39,0],[39,1,39,2],[40,0,40,7],[41,0,47,0],[47,1,47,2],[49,3,49,7]]}
[]
[]
[null,null,null,null,null,null,null,null,null,"Mois :  ","2023-10-01"]
[]
["AUDIT ET RÉSULTATS 5S"]
[]
["# de problèmes :  ",null,null,"(5+)","(3-4)","(2)","(1)","(0)"]
["Nombre d'observations :  ",null,null,0,1,2,3,4]
["Quant vous avez un doute, supprimez-le"]
["Trier",1,"Distinguer entre ce qui est à garder ou a supprimer"]
[null,2,"Les items inutiles sont présent"]
[null,3,"Les items inutiles sont sur le mure, plancher, tableau d'affichage, etc."]
[null,4,"Les items sont sont présent dans les aller, escalier, coins, etc."]
[null,5,"Les inventaires, fournitures ou matériels sont présents"]
[null,6,"Il existe des risques pour la sécurité (eau, huile, produits chimiques, machines) sont présent"]
[null,"Sous-total :  ",null,{"$f":"SUM(D10:D15)","v":0},{"$f":"SUM(E10:E15)","v":0},0,0,0]
["Une place pour chaque item et chaque item à sa place"]
["Organiser",1,"Chaque item à sa place / Chaque place a son item"]
[null,2,"Chaque item à sa place n'est pas évident à observer"]
[null,3,"Les items ne sont pas à leur places"]
[null,4,"Les allées, poste de travail, l'emplacement des équipements ne sont pas indiqués"]
[null,5,"Les items ne sont pas replacés après utilisation",null,null,null,null,null,null,"Commentaires et actions à prendre"]
[null,6,"La taille et la qualité des item ne sont pas évident à observer"]
[null,"Sous-total :  ",null,{"$f":"SUM(D18:D23)","v":0},{"$f":"SUM(E18:E23)","v":0},0,0,0]
["Nettoyer et inspecter ou inspecter en nettoyant"]
["Nettoyer",1,"Des procédures de nettoyage existe, afin de garder les endroits propres et organisé"]
[null,2,"Le plancher, les mures ne sont pas débarassé de la poussière.huile, graisse , etc."]
[null,3,"Les équipements ne sont pas garder propre (saleté, huile, graisse, etc)"]
[null,4,"Le matériels n'est placé de façon à facilité le nettoyage"]
[null,5,"Les lignes, étiquettes, signaux, etc. ne sont pas nettoyé, ni intact"]
[null,6,"Il existe d'autres problèmes de nettoyade dans la maison"]
[null,"Sous-total :  ",null,{"$f":"SUM(D26:D31)","v":0},{"$f":"SUM(E26:E31)","v":0},0,0,0]
["Déterminer les règles et assurez-vous quelles soient suivi"]
["Standardiser",1,"Maintien et maintenir les trois (3) premières catégories"]
[null,2,"Les informations utiles ne sont pas visibles"]
[null,3,"L'ensemble des standards ne sont pas tous connu et visible"]
[null,4,"Il n'existe pas de liste de vérification pour le nettoyage et le travail d'entretien"]
[null,5,"Toutes les quantités et les limites ne sont pas facilement reconnaissable"]
[null,6,"Combien d'items peuvent être localisé en 30 secondes ?"]
[null,"Sous-total :  ",null,{"$f":"SUM(D34:D39)","v":0},{"$f":"SUM(E34:E39)","v":0},0,0,0]
["Soutenir de façon permanente jusqu'à ce que cela devienne une habitude"]
["Maintenir",1,"L'équipe suit les règles"]
[null,2,"Combien d'employés n'ont pas eu l'entraînemet 5S ?"]
[null,3,"La semaine dernière, combien de fois paqr jour le 5S n'a pas été appliqué"]
[null,4,"Combien de fois les effets personnels des employés n'ont pas été soigneusement rangé"]
[null,5,"Combien de fois les outils ne sont pas disponibles ou à jour"]
[null,6,"Combien de fois , la semaine dernière que l'inspection 5S n'a pas été réalisé"]
[null,"Sous-total :  ",null,{"$f":"SUM(D42:D47)","v":0},{"$f":"SUM(E42:E47)","v":0},0,0,0]
["Total des sous-totaux :  ",null,null,{"$f":"SUM(D16,D24,D32,D40,D48)","v":0},{"$f":"SUM(E16,E24,E32,E40,E48)","v":0},0,0,0]
["Total 5S :  ",null,null,{"$f":"SUM(D49:H49)","v":0}]

{"sheet":"Audit Novembre","index":14,"n_rows":50,"n_cols":11,"rows_kept":50,"cut":false,"hidden":false,"merged":[[16,0,16,7],[17,0,23,0],[21,9,21,12],[22,9,49,12],[23,1,23,2],[24,0,24,7],[25,0,31,0],[31,1,31,2],[32,0,32,7],[4,0,4,12],[6,0,6,2],[7,0,7,2],[8,0,8,7],[9,0,15,0],[15,1,15,2],[48,0,48,2],[49,0,49,2],[33,0,39,0],[39,1,39,2],[40,0,40,7],[41,0,47,0],[47,1,47,2],[49,3,49,7]]}
[]
[]
[null,null,null,null,null,null,null,null,null,"Mois :  ","2023-11-01"]
[]
["AUDIT ET RÉSULTATS 5S"]
[]
["# de problèmes :  ",null,null,"(5+)","(3-4)","(2)","(1)","(0)"]
["Nombre d'observations :  ",null,null,0,1,2,3,4]
["Quant vous avez un doute, supprimez-le"]
["Trier",1,"Distinguer entre ce qui est à garder ou a supprimer"]
[null,2,"Les items inutiles sont présent"]
[null,3,"Les items inutiles sont sur le mure, plancher, tableau d'affichage, etc."]
[null,4,"Les items sont sont présent dans les aller, escalier, coins, etc."]
[null,5,"Les inventaires, fournitures ou matériels sont présents"]
[null,6,"Il existe des risques pour la sécurité (eau, huile, produits chimiques, machines) sont présent"]
[null,"Sous-total :  ",null,{"$f":"SUM(D10:D15)","v":0},{"$f":"SUM(E10:E15)","v":0},0,0,0]
["Une place pour chaque item et chaque item à sa place"]
["Organiser",1,"Chaque item à sa place / Chaque place a son item"]
[null,2,"Chaque item à sa place n'est pas évident à observer"]
[null,3,"Les items ne sont pas à leur places"]
[null,4,"Les allées, poste de travail, l'emplacement des équipements ne sont pas indiqués"]
[null,5,"Les items ne sont pas replacés après utilisation",null,null,null,null,null,null,"Commentaires et actions à prendre"]
[null,6,"La taille et la qualité des item ne sont pas évident à observer"]
[null,"Sous-total :  ",null,{"$f":"SUM(D18:D23)","v":0},{"$f":"SUM(E18:E23)","v":0},0,0,0]
["Nettoyer et inspecter ou inspecter en nettoyant"]
["Nettoyer",1,"Des procédures de nettoyage existe, afin de garder les endroits propres et organisé"]
[null,2,"Le plancher, les mures ne sont pas débarassé de la poussière.huile, graisse , etc."]
[null,3,"Les équipements ne sont pas garder propre (saleté, huile, graisse, etc)"]
[null,4,"Le matériels n'est placé de façon à facilité le nettoyage"]
[null,5,"Les lignes, étiquettes, signaux, etc. ne sont pas nettoyé, ni intact"]
[null,6,"Il existe d'autres problèmes de nettoyade dans la maison"]
[null,"Sous-total :  ",null,{"$f":"SUM(D26:D31)","v":0},{"$f":"SUM(E26:E31)","v":0},0,0,0]
["Déterminer les règles et assurez-vous quelles soient suivi"]
["Standardiser",1,"Maintien et maintenir les trois (3) premières catégories"]
[null,2,"Les informations utiles ne sont pas visibles"]
[null,3,"L'ensemble des standards ne sont pas tous connu et visible"]
[null,4,"Il n'existe pas de liste de vérification pour le nettoyage et le travail d'entretien"]
[null,5,"Toutes les quantités et les limites ne sont pas facilement reconnaissable"]
[null,6,"Combien d'items peuvent être localisé en 30 secondes ?"]
[null,"Sous-total :  ",null,{"$f":"SUM(D34:D39)","v":0},{"$f":"SUM(E34:E39)","v":0},0,0,0]
["Soutenir de façon permanente jusqu'à ce que cela devienne une habitude"]
["Maintenir",1,"L'équipe suit les règles"]
[null,2,"Combien d'employés n'ont pas eu l'entraînemet 5S ?"]
[null,3,"La semaine dernière, combien de fois paqr jour le 5S n'a pas été appliqué"]
[null,4,"Combien de fois les effets personnels des employés n'ont pas été soigneusement rangé"]
[null,5,"Combien de fois les outils ne sont pas disponibles ou à jour"]
[null,6,"Combien de fois , la semaine dernière que l'inspection 5S n'a pas été réalisé"]
[null,"Sous-total :  ",null,{"$f":"SUM(D42:D47)","v":0},{"$f":"SUM(E42:E47)","v":0},0,0,0]
["Total des sous-totaux :  ",null,null,{"$f":"SUM(D16,D24,D32,D40,D48)","v":0},{"$f":"SUM(E16,E24,E32,E40,E48)","v":0},0,0,0]
["Total 5S :  ",null,null,{"$f":"SUM(D49:H49)","v":0}]

{"sheet":"Audit Décembre","index":15,"n_rows":50,"n_cols":11,"rows_kept":50,"cut":false,"hidden":false,"merged":[[16,0,16,7],[17,0,23,0],[21,9,21,12],[22,9,49,12],[23,1,23,2],[24,0,24,7],[25,0,31,0],[31,1,31,2],[32,0,32,7],[4,0,4,12],[6,0,6,2],[7,0,7,2],[8,0,8,7],[9,0,15,0],[15,1,15,2],[48,0,48,2],[49,0,49,2],[33,0,39,0],[39,1,39,2],[40,0,40,7],[41,0,47,0],[47,1,47,2],[49,3,49,7]]}
[]
[]
[null,null,null,null,null,null,null,null,null,"Mois :  ","2023-12-01"]
[]
["AUDIT ET RÉSULTATS 5S"]
[]
["# de problèmes :  ",null,null,"(5+)","(3-4)","(2)","(1)","(0)"]
["Nombre d'observations :  ",null,null,0,1,2,3,4]
["Quant vous avez un doute, supprimez-le"]
["Trier",1,"Distinguer entre ce qui est à garder ou a supprimer"]
[null,2,"Les items inutiles sont présent"]
[null,3,"Les items inutiles sont sur le mure, plancher, tableau d'affichage, etc."]
[null,4,"Les items sont sont présent dans les aller, escalier, coins, etc."]
[null,5,"Les inventaires, fournitures ou matériels sont présents"]
[null,6,"Il existe des risques pour la sécurité (eau, huile, produits chimiques, machines) sont présent"]
[null,"Sous-total :  ",null,{"$f":"SUM(D10:D15)","v":0},{"$f":"SUM(E10:E15)","v":0},0,0,0]
["Une place pour chaque item et chaque item à sa place"]
["Organiser",1,"Chaque item à sa place / Chaque place a son item"]
[null,2,"Chaque item à sa place n'est pas évident à observer"]
[null,3,"Les items ne sont pas à leur places"]
[null,4,"Les allées, poste de travail, l'emplacement des équipements ne sont pas indiqués"]
[null,5,"Les items ne sont pas replacés après utilisation",null,null,null,null,null,null,"Commentaires et actions à prendre"]
[null,6,"La taille et la qualité des item ne sont pas évident à observer"]
[null,"Sous-total :  ",null,{"$f":"SUM(D18:D23)","v":0},{"$f":"SUM(E18:E23)","v":0},0,0,0]
["Nettoyer et inspecter ou inspecter en nettoyant"]
["Nettoyer",1,"Des procédures de nettoyage existe, afin de garder les endroits propres et organisé"]
[null,2,"Le plancher, les mures ne sont pas débarassé de la poussière.huile, graisse , etc."]
[null,3,"Les équipements ne sont pas garder propre (saleté, huile, graisse, etc)"]
[null,4,"Le matériels n'est placé de façon à facilité le nettoyage"]
[null,5,"Les lignes, étiquettes, signaux, etc. ne sont pas nettoyé, ni intact"]
[null,6,"Il existe d'autres problèmes de nettoyade dans la maison"]
[null,"Sous-total :  ",null,{"$f":"SUM(D26:D31)","v":0},{"$f":"SUM(E26:E31)","v":0},0,0,0]
["Déterminer les règles et assurez-vous quelles soient suivi"]
["Standardiser",1,"Maintien et maintenir les trois (3) premières catégories"]
[null,2,"Les informations utiles ne sont pas visibles"]
[null,3,"L'ensemble des standards ne sont pas tous connu et visible"]
[null,4,"Il n'existe pas de liste de vérification pour le nettoyage et le travail d'entretien"]
[null,5,"Toutes les quantités et les limites ne sont pas facilement reconnaissable"]
[null,6,"Combien d'items peuvent être localisé en 30 secondes ?"]
[null,"Sous-total :  ",null,{"$f":"SUM(D34:D39)","v":0},{"$f":"SUM(E34:E39)","v":0},0,0,0]
["Soutenir de façon permanente jusqu'à ce que cela devienne une habitude"]
["Maintenir",1,"L'équipe suit les règles"]
[null,2,"Combien d'employés n'ont pas eu l'entraînemet 5S ?"]
[null,3,"La semaine dernière, combien de fois paqr jour le 5S n'a pas été appliqué"]
[null,4,"Combien de fois les effets personnels des employés n'ont pas été soigneusement rangé"]
[null,5,"Combien de fois les outils ne sont pas disponibles ou à jour"]
[null,6,"Combien de fois , la semaine dernière que l'inspection 5S n'a pas été réalisé"]
[null,"Sous-total :  ",null,{"$f":"SUM(D42:D47)","v":0},{"$f":"SUM(E42:E47)","v":0},0,0,0]
["Total des sous-totaux :  ",null,null,{"$f":"SUM(D16,D24,D32,D40,D48)","v":0},{"$f":"SUM(E16,E24,E32,E40,E48)","v":0},0,0,0]
["Total 5S :  ",null,null,{"$f":"SUM(D49:H49)","v":0}]

{"sheet":"Tableau","index":16,"n_rows":7,"n_cols":3,"rows_kept":7,"cut":false,"hidden":true,"merged":[]}
[]
[null,"Nombre de problèmes","Évaluation"]
[null,"4 ou plus","Niveau 0 (LO)"]
[null,3,"Niveau 1 (L1)"]
[null,2,"Niveau 2 (L2)"]
[null,1,"Niveau 3 (L3)"]
[null,"Aucun","Niveau 4 (L4)"]